Cogmind - Beta 15 @@@ ROGUE MODE // 2025.05.22 @ 14:45:39 Player: 7604 Result: Self-destructed Performance ------------- Evolutions (5) 2500 Regions Visited (16) 3200 Robots Destroyed (201) 1005 Value Destroyed (5426) 5426 Prototype IDs (65) 1300 Alien Tech Used (0) 0 Bonus (1026) 1026 TOTAL SCORE: 14457 Bonus ------- High Alert Combat Kills 146 Follower Combat Kills 328 Aligned with FarCom 300 Met Data Miner 300 Friendly Fire -48 Cogmind --------- Core Integrity 708/1000 Matter 7/300 Energy 114/150 System Corruption 20% Temperature Cool (6) Movement Immobile (Siege) Location -5/Factory Parts ------- > --- POWER (1) -------- Micro Fission Core > --- PROPULSION (5) --- Armored Medium Treads Heavy Treads Heavy Treads > --- UTILITY (9) ------ Medium Storage Unit Targeting Computer Improved Target Analyzer Core Analyzer Improved Weapon Cycler Improved Weapon Cycler Phase Shifter Improved Focal Shield > --- WEAPON (2) ------- Railgun (fused) Railgun > --- INVENTORY (10) --- Improved Ion Engine Improved Target Analyzer Advanced Shield Generator Sensor Drone Bay (15/20) KE Penetrator Railgun Molecular Deconstructor Heavy Flail Peak State ------------ > --- POWER ------------ Micro Fission Core > --- PROPULSION ------- Armored Medium Treads Heavy Treads Heavy Treads > --- UTILITY ---------- Medium Storage Unit Targeting Computer Improved Target Analyzer Core Analyzer Improved Weapon Cycler Improved Weapon Cycler Improved Focal Shield Long-range Tractor Beam Sensor Drone Bay > --- WEAPON ----------- Railgun Railgun > --- INVENTORY -------- Improved Ion Engine Improved Target Analyzer Phase Shifter Advanced Shield Generator KE Penetrator Railgun Railgun Molecular Deconstructor Heavy Flail [Rating: 98] Favorites ----------- Power Improved Deuterium Engine Engine Improved Deuterium Engine Power Core Nuclear Core Propulsion Armored Treads Treads Armored Treads Wheel Armored Huge Wheel Hover Unit Gyrokinetic Inverter Flight Unit Cooled VTOL Module Utility Seismic Detector Device Seismic Detector Storage Huge Storage Unit Processor Advanced Melee Analysis Suite Hackware Hacking Suite Protection Hardened Medium Armor Plating Weapon Improved Medium Laser Energy Gun Improved Medium Laser Energy Cannon Cooled Particle Cannon Ballistic Gun Railgun Ballistic Cannon Light Cannon Launcher Rocket Launcher Special Weapon Mining Laser Impact Weapon Heavy Flail Slashing Weapon Ripper Special Melee Weapon Improved Datajack Build | -11 -10 -10 -9 -9 -9 -8 -8 -7 -7 -7 -7 -6 -6 -6 -6 -5 ------- Run | Yrd Mat Min Mat Min Exi Min Mat Fac Low Low Dat Pro Fac Low Low Fac Slots Evolved 10 | . . . 2 . . . 2 2 . . . . 2 . . 2 Power . | . . . . . . . . . . . . . . . . . Propulsion 3 | . . . 1 . . . 1 . . . . . . . . 1 Utility 7 | . . . 1 . . . 1 2 . . . . 2 . . 1 Weapon . | . . . . . . . . . . . . . . . . . Parts Attached 163 | 7 11 2 29 2 . 5 16 29 2 . 1 2 24 7 . 26 Power 16 | 1 2 1 1 . . . 4 2 . . . . 3 . . 2 Engine 12 | 1 2 1 . . . . 4 2 . . . . 1 . . 1 Core 4 | . . . 1 . . . . . . . . . 2 . . 1 Reactor . | . . . . . . . . . . . . . . . . . Propulsion 37 | 2 2 . 11 . . . 3 5 . . . 2 3 3 . 6 Treads 27 | 2 2 . 11 . . . 3 2 . . . 1 . 3 . 3 Leg . | . . . . . . . . . . . . . . . . . Wheel 1 | . . . . . . . . . . . . 1 . . . . Hover 1 | . . . . . . . . . . . . . . . . 1 Flight 8 | . . . . . . . . 3 . . . . 3 . . 2 Utility 66 | 2 3 1 9 . . 3 8 13 . . . . 13 2 . 12 Device 30 | 1 1 1 6 . . 1 3 4 . . . . 5 1 . 7 Storage 9 | 1 2 . 1 . . . 1 1 . . . . 2 . . 1 Processor 9 | . . . . . . 1 . 1 . . . . 3 1 . 3 Hackware 6 | . . . . . . . . 4 . . . . 2 . . . Protection 12 | . . . 2 . . 1 4 3 . . . . 1 . . 1 Artifact . | . . . . . . . . . . . . . . . . . Weapon 44 | 2 4 . 8 2 . 2 1 9 2 . 1 . 5 2 . 6 Energy Gun 12 | 1 1 . 3 . . 2 1 3 . . . . 1 . . . Energy Cannon 6 | . 1 . 1 . . . . 2 1 . . . . 1 . . Ballistic Gun 7 | 1 . . . . . . . . . . . . 2 . . 4 Ballistic Cannon 2 | . 1 . . . . . . 1 . . . . . . . . Launcher 5 | . . . 4 . . . . . 1 . . . . . . . Special Weapon 3 | . 1 . . . . . . . . . 1 . . 1 . . Impact Weapon 2 | . . . . . . . . . . . . . . . . 2 Slashing Weapon 5 | . . . . 1 . . . 2 . . . . 2 . . . Piercing Weapon . | . . . . . . . . . . . . . . . . . Special Melee Weapon 2 | . . . . 1 . . . 1 . . . . . . . . Unidentified Prototypes 15 | . . 1 3 . . . 1 6 . . . . 1 1 . 2 Corrupted Parts 2 | . . . . . . . . . . . . . . . . 2 System Corruption 16 | . . . . . . . . . . . . . . . . 16 Parts Lost 51 | . 5 . 2 . . . 6 2 1 1 . 10 5 11 2 6 Power 7 | . 1 . 1 . . . 1 . . . . 1 . 2 . 1 Propulsion 12 | . 1 . . . . . 1 . . . . 5 1 4 . . Utility 21 | . 1 . 1 . . . 1 2 1 1 . 2 3 4 2 3 Weapon 11 | . 2 . . . . . 3 . . . . 2 1 1 . 2 Highest Loss Streak 11 | . 2 . 1 . . . 3 1 1 1 . 9 4 11 2 3 To Critical Strikes . | . . . . . . . . . . . . . . . . . Average Backups 17 | 3 11 21 24 25 23 22 21 8 24 24 25 22 11 11 4 7 Power . | . . 1 1 . . . . . . . . . . . . . Propulsion 3 | . 2 4 3 4 4 5 4 1 7 7 7 5 1 2 . 1 Utility 7 | 2 5 9 10 11 9 8 9 3 9 9 11 9 6 5 2 1 Weapon 5 | . 3 6 7 8 7 6 4 3 7 6 6 5 3 3 2 4 Tool/Special . | . . . . . . . . . . . . . . . . . Unused Backups 45 | 1 . . 15 . 3 1 4 7 . . . 1 4 4 . 5 Power 3 | . . . 2 . . . . . . . . . . . . 1 Propulsion 5 | . . . 2 . . 1 1 1 . . . . . . . . Utility 23 | . . . 9 . 2 . 1 4 . . . 1 3 2 . 1 Weapon 13 | 1 . . 2 . 1 . 1 2 . . . . 1 2 . 3 Tool/Special 1 | . . . . . . . 1 . . . . . . . . . Average Slot Usage (%) 92 | . 96 100 99 100 100 99 99 77 99 99 100 87 91 77 26 64 Engine 6 | . 13 14 6 . . . 6 7 7 7 7 4 2 . . 2 Core 2 | . . . 4 11 11 11 2 . . . . . 2 4 . 1 Treads 23 | . 27 28 33 33 33 33 35 1 30 30 30 25 . 3 . 8 Flight 2 | . . . . . . . . 6 . . . . 25 18 . 2 Device 14 | . 14 14 21 21 22 19 11 11 14 7 7 7 14 10 6 19 Storage 9 | . 14 14 11 11 11 11 9 7 7 7 7 7 6 5 . 4 Processor 1 | . . . . . . . . . . . . . 11 11 13 9 Hackware 7 | . . . . . . . . 19 23 23 23 23 17 16 6 . Protection 3 | . . . . . . 2 15 6 . 6 7 4 . . . . Energy Gun 8 | . 7 . 20 21 . 22 17 . . . . . . . . . Energy Cannon 2 | . 1 14 . . . . . . 6 10 . 11 . . . . Ballistic Cannon 2 | . 9 14 . . . . . . . . . . . . . . Slashing Weapon 1 | . . . . . 11 . . 6 . . 7 . 5 4 . . Special Melee Weapon 1 | . . . . . 10 . . 6 7 4 . . . . . . Peak Build Rating 98 | 8 9 16 33 31 34 34 40 62 44 49 48 49 67 72 22 98 Average Rating 35 | 6 8 11 27 30 30 32 36 56 43 46 44 42 53 50 21 67 On Entrance 29 | . 7 9 16 27 29 34 34 36 44 44 48 48 39 56 22 14 Naked Turns . | . . . . . . . . . . . . . . . . . Heaviest Build 114 | 13 90 96 101 97 97 97 110 106 100 114 113 113 88 30 . 53 Greatest Support 167 | 40 40 40 60 60 60 60 83 82 82 82 82 90 33 86 15 167 Greatest Overweight (x) 13 | 1 4 2 1 1 1 1 1 13 1 1 1 3 4 1 . 3 Average Overweight (x) . | . 1 2 1 1 1 1 1 . 1 1 1 1 . . . . Largest Inventory Capacity 25 | 8 25 25 25 25 25 25 25 25 25 25 25 25 25 15 5 10 Average Capacity 20 | 7 22 25 25 25 25 25 25 10 25 25 25 25 12 12 5 9 Most Carried 25 | 8 19 25 25 25 25 25 25 25 25 25 25 25 22 15 5 10 Average Carried 18 | 3 11 21 24 24 24 24 24 8 24 24 25 22 11 12 5 8 Final Capacity 25 | 8 25 25 25 25 25 25 25 25 25 25 25 25 15 5 5 10 Final Carried 25 | 7 19 25 25 25 25 25 25 25 24 25 25 19 13 5 5 9 Class Distribution -------------------- 33% | Mutant 30% | Hacker-Mutant 22% | Scavenger-Mutant 8% | Skirmisher 3% | Hacker-Sprinter Dominant Class ---------------- Mutant | -10/Materials Scavenger-Mutant | -10/Mines Scavenger-Mutant | -9/Materials Mutant | -9/Mines Mutant | -9/Exiles Skirmisher | -8/Mines Mutant | -8/Materials Hacker-Mutant | -7/Factory Hacker-Mutant | -7/Lower Caves Hacker-Mutant | -7/Lower Caves Hacker-Mutant | -7/Data Miner Hacker-Mutant | -6/Proximity Caves Hacker-Sprinter | -6/Factory Mutant | -6/Lower Caves Mutant | -6/Lower Caves Scavenger-Mutant | -5/Factory Resources | -11 -10 -10 -9 -9 -9 -8 -8 -7 -7 -7 -7 -6 -6 -6 -6 -5 ----------- Run | Yrd Mat Min Mat Min Exi Min Mat Fac Low Low Dat Pro Fac Low Low Fac Matter Collected 5005 | 315 449 101 995 46 . 139 262 702 208 239 . 192 477 90 . 790 Remotely 435 | . . . . . . . . . . . . . . . . 435 Salvage Created 7060 | 241 650 66 1796 15 . 80 991 1044 90 257 . 94 599 102 . 1035 Parts 411 | 32 38 8 107 5 . 5 36 72 10 14 . 7 33 2 . 42 Haulers Intercepted 16 | . 2 . 6 . . . 2 4 . . . . 2 . . . Recyclers Shooed 4 | . . . 1 . . . . 1 . . . . . . . 2 Parts Field Recycled . | . . . . . . . . . . . . . . . . . Retrieved Matter . | . . . . . . . . . . . . . . . . . Parts Self-Destructed 38 | . . . . . . . . . 16 11 . 9 . 2 . . Prevented 3 | . . . . . . . . . . . . 3 . . . . Kills | -11 -10 -10 -9 -9 -9 -8 -8 -7 -7 -7 -7 -6 -6 -6 -6 -5 ------- Run | Yrd Mat Min Mat Min Exi Min Mat Fac Low Low Dat Pro Fac Low Low Fac Combat Hostiles Destroyed 126 | . 17 2 37 3 . 1 14 14 6 9 . 4 5 1 . 13 Melee 21 | . . . . . . . . 13 . . . . 5 1 . 2 Guns 54 | . 6 . 27 . . 1 12 . . . . . . . . 8 Cannons 20 | . 11 2 . . . . . 1 . 3 . 3 . . . . AOE 25 | . . . 9 3 . . . . 6 6 . 1 . . . . Classes Destroyed 17 | 2 5 1 3 . . . 2 1 . 1 . 2 . . . . Worker 10 | . . 1 2 . . . 1 . . . . . 5 . . 1 Builder 8 | . . . 2 . . . . 1 . . . . 2 . . 3 Tunneler 16 | 9 1 2 1 . . 2 . 1 . . . . . . . . Hauler 16 | . 2 . 6 . . . 2 4 . . . . 2 . . . Recycler 6 | 1 . . 1 . . . 1 . . . . . . . . 3 Minesweeper 1 | . . . . . . . . . . . . 1 . . . . Operator 6 | . 1 . 2 . . . 1 2 . . . . . . . . Drone 4 | . . . . . . . . . . . . 2 . . . 2 Watcher 12 | . 3 . 4 . . . 1 4 . . . . . . . . Swarmer 41 | . 6 1 10 3 . . . 3 6 7 . . . . . 5 Grunt 41 | . 11 1 16 . . 1 4 2 . . . 1 3 . . 2 Brawler 1 | . . . 1 . . . . . . . . . . . . . Duelist 1 | . . . . . . . 1 . . . . . . . . . Sentry 19 | . . . 10 . . . 6 1 . 1 . . . . . 1 Hunter 6 | . . . . . . . 3 . . . . . . . . 3 Programmer 13 | . . . . . . . . 8 . . . . 2 1 . 2 Behemoth 2 | . . . . . . . . . . 1 . 1 . . . . Best Kill Streak 6 | 3 5 2 6 3 . 1 4 3 4 4 . 2 4 1 . 5 Combat Bots Only 5 | . 5 1 4 3 . 1 3 3 4 4 . 2 3 1 . 5 Max Kills in Single Turn 4 | 2 1 1 4 3 . 1 1 1 4 3 . 1 1 1 . 2 Gunslinging . | . . . . . . . . . . . . . . . . . Exploded 4 | . . . 3 3 . . . . 4 3 . 1 . . . . Melee 1 | . . . . . . . . 1 . . . . 1 1 . 1 Uniques/NPCs Destroyed . | . . . . . . . . . . . . . . . . . Combat | -11 -10 -10 -9 -9 -9 -8 -8 -7 -7 -7 -7 -6 -6 -6 -6 -5 -------- Run | Yrd Mat Min Mat Min Exi Min Mat Fac Low Low Dat Pro Fac Low Low Fac Hostile Shots Fired 1170 | . 97 7 152 . . 4 150 243 23 62 . 88 90 115 15 124 Missed 377 | . 22 4 42 . . 1 35 117 11 20 . 27 43 27 5 23 Hits 793 | . 75 3 110 . . 3 115 126 12 42 . 61 47 88 10 101 Melee 8 | . . . 1 . . . 4 1 . . . . . . 2 . Projectile 785 | . 75 3 109 . . 3 111 125 12 42 . 61 47 88 8 101 Critical Strikes 22 | . 1 . 2 . . . 4 2 . . . 3 2 4 2 2 Part Disruptions 2 | . . . . . . . . 1 . . . . . 1 . . Actively Blocked 1 | . . . . . . . . 1 . . . . . . . . Damage Taken 11786 | . 823 22 1356 66 . 44 1648 1664 164 497 . 1675 655 1271 207 1694 Core 2081 | . 156 . 171 13 . . 151 219 10 18 . 221 234 403 193 292 Absorbed by Shields . | . . . . . . . . . . . . . . . . . Reduced by Siege Mode 73 | . . . . . . . . . . . . . . . . 73 Redirected to Shielding 104 | . . . . . . . 30 74 . . . . . . . . Ignored by Resistances 151 | . . . . . . . . . . . . . 13 . . 138 Regen/Repaired (Parts) 456 | . 201 . . . . . 255 . . . . . . . . . Core Remaining (%) 49 | 100 . 37 . . . 54 72 . . . . 33 . . 2 . Volleys Fired 440 | 15 66 2 124 1 . 4 90 1 9 15 . 41 1 . . 71 Largest 2 | 2 2 2 2 2 . 2 2 1 1 2 . 2 1 . . 2 Hottest 180 | 70 100 90 131 66 . 90 131 30 90 180 . 180 20 . . 75 Shots Fired 792 | 30 107 6 228 2 . 11 179 1 10 26 . 53 1 . . 138 Gun 622 | 30 62 . 203 . . 11 179 . . . . . . . . 137 Cannon 116 | . 41 6 . . . . . 1 8 22 . 37 . . . 1 Launcher 34 | . . . 10 2 . . . . 2 4 . 16 . . . . Special 20 | . 4 . 15 . . . . . . . . . 1 . . . Kinetic 220 | 15 65 3 . . . . . . . . . . . . . 137 Thermal 492 | 15 32 3 218 . . . 155 1 8 22 . 37 1 . . . Explosive 34 | . . . 10 2 . . . . 2 4 . 16 . . . . Electromagnetic 46 | . 10 . . . . 11 24 . . . . . . . . 1 Robot Hit Streak 21 | 17 18 8 21 . . 5 17 9 2 10 . 13 . . . 15 Robot Miss Streak 5 | 2 3 . 4 . . 2 5 . 2 3 . 2 . . . 3 Penetration Max 2 | . . . . . . . . . . . . . . . . 2 Secondary Targets 7 | . 2 . 1 . . . 2 . . . . . . . . 2 Max Gunslinging Chain 1 | . 1 . 1 . . . 1 . . . . . . . . 1 Shots Hit Robots 582 | 22 70 4 135 . 4 6 125 75 2 16 . 29 18 6 . 70 Core Hits 256 | 11 30 4 65 2 . 4 43 25 7 12 . 14 11 2 1 25 Critical Kills 2 | . . . . . . . . . . . . . . . . 2 Critical Parts Destroyed 6 | . . . . . . . . . . . . . . . . 6 Critical Strikes 42 | . 3 . 14 . . . 11 5 . . . . 1 . . 8 Burn 27 | . 2 . 14 . . . 11 . . . . . . . . . Destroy 5 | . . . . . . . . . . . . . . . . 5 Blast 1 | . 1 . . . . . . . . . . . . . . . Smash 3 | . . . . . . . . . . . . . . . . 3 Sever 6 | . . . . . . . . 5 . . . . 1 . . . Melee Attacks 278 | . . . . . 4 . 2 178 . . . . 68 10 . 16 Impact 16 | . . . . . . . . . . . . . . . . 16 Slashing 256 | . . . . . . . 2 176 . . . . 68 10 . . Piercing . | . . . . . . . . . . . . . . . . . Sneak Attacks 27 | . . . . . 4 . . 12 . . . . 9 . . 2 Combat Hostiles 1 | . . . . . . . . 1 . . . . . . . . Follow-up Attacks . | . . . . . . . . . . . . . . . . . Damage Inflicted 17008 | 288 1147 104 3295 183 . 96 2182 3058 398 1024 . 1254 1255 313 8 2403 Guns 7405 | 288 547 . 2617 . . 92 2179 . . . . . . . . 1682 Cannons 1931 | . 585 73 . . . . . 32 55 593 . 593 . . . . Explosions 2482 | . . . 669 183 . . . . 343 431 . 661 . . . 195 Melee 5094 | . . . . . . . . 3026 . . . . 1255 307 . 506 Ramming 96 | . 15 31 9 . . 4 3 . . . . . . 6 8 20 Kinetic 2517 | 113 702 20 . . . . . . . . . . . . . 1682 Thermal 6517 | 175 284 53 2617 . . . 1920 32 55 593 . 593 . . . 195 Explosive 2287 | . . . 669 183 . . . . 343 431 . 661 . . . . Electromagnetic 497 | . 146 . . . . 92 259 . . . . . . . . . Impact 506 | . . . . . . . . . . . . . . . . 506 Slashing 4588 | . . . . . . . . 3026 . . . . 1255 307 . . Piercing . | . . . . . . . . . . . . . . . . . Highest Corruption 20 | . 2 2 1 1 1 1 4 8 8 8 8 8 2 6 11 20 Average Corruption 4 | . 2 2 1 1 1 1 2 3 8 8 8 8 1 3 6 19 Corruption Purged 3 | . . . . . . . . 3 . . . . . . . . Corruption Blocked . | . . . . . . . . . . . . . . . . . Effects 319 | . 30 27 16 5 2 8 25 39 37 33 6 32 3 3 3 50 Message Errors 74 | . 10 8 1 1 1 . 10 8 6 6 2 6 1 1 1 12 Matter Fused 75 | . 10 6 6 . 1 1 7 5 11 10 1 7 1 2 . 7 Heat Flow Errors 38 | . 2 4 1 1 . 2 1 9 6 1 . 5 1 . . 5 Energy Discharges 42 | . 2 1 6 1 . 2 1 13 3 5 1 4 . . . 3 Parts Rejected 2 | . . . . . . . . . . . . . . . 1 1 Parts Fused 4 | . . . . . . . . 1 . 1 . 1 . . . 1 Data Loss (minor) 38 | . 1 4 1 1 . . 5 2 5 4 2 4 . . . 9 Data Loss (major) 14 | . . 2 . 1 . . . 1 3 3 . . . . . 4 Misfires 22 | . 4 2 1 . . 3 1 . 2 2 . 3 . . . 4 Alerts 5 | . 1 . . . . . . . . 1 . 2 . . . 1 Misdirections 1 | . . . . . . . . . . . . . . . 1 . Weapon Failures 4 | . . . . . . . . . 1 . . . . . . 3 Overload Shots 12 | . . . . . . . . . 3 6 . 3 . . . . Effects 1 | . . . . . . . . . . . . 1 . . . . Short Circuit 1 | . . . . . . . . . . . . 1 . . . . Overflow Damage 829 | . 4 3 . 51 . . . 206 2 7 . 23 135 51 . 347 Projectiles 21 | . 4 . . . . . . . 2 . . 15 . . . . Explosions 127 | . . . . 51 . . . . . 7 . 8 . . . 61 Melee 681 | . . 3 . . . . . 206 . . . . 135 51 . 286 Knockbacks 8 | . 4 . . . . . . . . . . . . . . 4 Impact 4 | . . . . . . . . . . . . . . . . 4 Kinetic 4 | . 4 . . . . . . . . . . . . . . . Secondary . | . . . . . . . . . . . . . . . . . Self-Inflicted Damage 240 | . . . . 70 . . . . 40 . . 124 . 3 3 . Shots 9 | . . . . 2 . . . . 1 . . 6 . . . . Rammed 20 | . 3 5 2 . . . 2 . . . . . . 2 3 3 Targets Rammed 25 | . 3 7 3 . . 1 2 . . . . . . 2 3 4 Kicked . | . . . . . . . . . . . . . . . . . Crushed 5 | . . 2 1 . . 1 . . . . . . . . . 1 Highest Temperature 503 | 45 271 233 236 100 . 138 152 260 214 144 . 503 272 . . 218 Average Temperature 62 | 13 69 93 58 39 . 48 38 97 74 70 . 137 72 . . 34 Received Heat Transfer 3337 | . 354 . 441 . . 18 630 306 12 54 . 979 276 165 21 81 Effects 4 | . 1 . 2 . . . . . . . . 1 . . . . Energy Bleed 2 | . 1 . 1 . . . . . . . . . . . . . Interference 1 | . . . 1 . . . . . . . . . . . . . Short Circuit 1 | . . . . . . . . . . . . 1 . . . . Siege Activations 6 | . . . . . . . . . . . . . . . . 6 Total Turns 61 | . . . . . . . . . . . . . . . . 61 Longest Duration 17 | . . . . . . . . . . . . . . . . 17 Martial Activations . | . . . . . . . . . . . . . . . . . Shielding Activations . | . . . . . . . . . . . . . . . . . Robots Disrupted . | . . . . . . . . . . . . . . . . . Combat Hostiles . | . . . . . . . . . . . . . . . . . Robots Corrupted 6 | . . . . . . . . . . . . . . . . 6 Combat Hostiles 3 | . . . . . . . . . . . . . . . . 3 Parts Fried 16 | . . . . . . . 1 . . . . . . . . 15 Impact Corruptions 11 | . . 1 . . . . . . . . . . . . . 10 Robots Melted 4 | . . . 1 . . . 3 . . . . . . . . . Combat Hostiles 3 | . . . 1 . . . 2 . . . . . . . . . Parts Melted 25 | . 2 . 10 . . . 9 . . 4 . . . . . . Heat Transferred 14079 | 518 925 111 5920 . . . 4958 37 74 657 . 729 . . . 150 Parts Sabotaged . | . . . . . . . . . . . . . . . . . Parts Stolen . | . . . . . . . . . . . . . . . . . Parts Stripped . | . . . . . . . . . . . . . . . . . Power Chain Reactions 3 | . . . . . . . . 3 . . . . . . . . Alert | -11 -10 -10 -9 -9 -9 -8 -8 -7 -7 -7 -7 -6 -6 -6 -6 -5 ------- Run | Yrd Mat Min Mat Min Exi Min Mat Fac Low Low Dat Pro Fac Low Low Fac Maximum Alert Level 3 | . . . 2 1 . . . 3 . . . . 2 . . . Low Security (%) 68 | 100 100 100 39 68 . 100 100 36 . . . . . . . 100 Level 1 19 | . . . 42 31 . . . 26 . . . . 85 . . . Level 2 10 | . . . 18 . . . . 32 . . . . 14 . . . Level 3 . | . . . . . . . . 5 . . . . . . . . Level 4 . | . . . . . . . . . . . . . . . . . Level 5 . | . . . . . . . . . . . . . . . . . High Security . | . . . . . . . . . . . . . . . . . Max Security . | . . . . . . . . . . . . . . . . . Peak Influence 723 | 15 106 52 534 286 . 47 179 723 . . . . 579 . . 172 Initial 300 | . . 25 . 200 . . . 64 . . . . 300 . . 46 Average 145 | 1 36 6 251 151 . 3 56 295 . . . . 303 . . 57 Influence Increases 6577 | 50 567 184 1276 86 . 155 551 1344 167 210 . 90 1157 180 . 560 Destroy 0b10 Robot/C 2700 | . 340 120 740 60 . 100 280 280 140 180 . 60 120 20 . 260 Destroy 0b10 Robot/NC 395 | 50 35 20 90 . . 10 30 60 . . . 15 50 . . 35 Destroy Leader 756 | . 80 20 230 10 . 30 106 126 20 30 . 10 34 10 . 50 Allied During Kill 57 | . . 9 . . . 15 . . 7 . . 5 21 . . . Trap Triggered on 0b10 40 | . . . . . . . . 20 . . . . 20 . . . Successful Hack 166 | . 32 . 16 . . . 43 16 . . . . 54 . . 5 Select Force Hacks 140 | . 60 . 30 . . . . 50 . . . . . . . . Disable Machine 165 | . . . 30 . . . 15 . . . . . . . . 120 Destroy Structure 313 | . 5 . 80 16 . . 2 72 . . . . 48 . . 90 Advance Influence 300 | . . . . . . . . . . . . . 300 . . . Partial Spotted 195 | . . . . . . . . 135 . . . . 60 . . . Lose Combat Pursuer 1350 | . 15 15 60 . . . 75 585 . . . . 450 150 . . Influence Decreases 6405 | 50 502 249 761 577 24 155 409 996 657 210 . 90 842 327 93 463 Entered New Map 818 | . . 40 . 315 24 . . 78 182 . . . . 117 33 29 Time Decay 4245 | 50 452 169 591 262 . 115 359 598 425 210 . 58 452 100 40 364 Search Patrol Dispatched 300 | . . . . . . . . 150 . . . . 150 . . . Lost Part 422 | . 50 . 20 . . . 50 20 10 . . 32 50 110 20 60 Lost Ally 170 | . . 40 . . . 40 . . 40 . . . 40 . . 10 Purge Threat 450 | . . . 150 . . . . 150 . . . . 150 . . . Squads Dispatched 44 | . 4 . 8 . . . 3 15 . . . . 5 . 1 8 Investigation 14 | . 3 . 3 . . . 1 2 . . . . 3 . . 2 Extermination 12 | . . . . . . . . 8 . . . . 2 . . 2 Reinforcement 16 | . 1 . 5 . . . 1 5 . . . . . . . 4 Assault 1 | . . . . . . . . . . . . . . . 1 . Garrison 1 | . . . . . . . 1 . . . . . . . . . Intercept . | . . . . . . . . . . . . . . . . . Searches Triggered 2 | . . . . . . . . 1 . . . . 1 . . . Data Miner Redirects 2 | . . . . . . . . . . . . . . . . 2 Construction Impeded 1 | . . . 1 . . . . . . . . . . . . . Haulers Reinforced 4 | . . . . . . . . 3 . . . . . . . 1 Active Scanning Responses . | . . . . . . . . . . . . . . . . . Cargo Convoy Interrupts . | . . . . . . . . . . . . . . . . . Stealth | -11 -10 -10 -9 -9 -9 -8 -8 -7 -7 -7 -7 -6 -6 -6 -6 -5 --------- Run | Yrd Mat Min Mat Min Exi Min Mat Fac Low Low Dat Pro Fac Low Low Fac Distress Signals 8 | . . . 1 . . . 2 2 . . . . 2 . . 1 Communications Jammed . | . . . . . . . . . . . . . . . . . Distress Signals . | . . . . . . . . . . . . . . . . . Times Spotted 282 | . 23 8 48 . . 2 26 74 10 9 . 5 32 18 11 16 Peak Tracking Total 13 | . 5 2 7 . . 1 4 6 4 4 . 2 9 10 13 5 Tactical Retreats 41 | . 1 1 4 . . . 4 22 . . . . 7 2 . . Traps | -11 -10 -10 -9 -9 -9 -8 -8 -7 -7 -7 -7 -6 -6 -6 -6 -5 ------- Run | Yrd Mat Min Mat Min Exi Min Mat Fac Low Low Dat Pro Fac Low Low Fac Traps Triggered 19 | . 3 . 3 . . . 2 5 . . . . 5 . . 1 Indirectly . | . . . . . . . . . . . . . . . . . Trap Hack Attempts . | . . . . . . . . . . . . . . . . . Triggered . | . . . . . . . . . . . . . . . . . Disarmed . | . . . . . . . . . . . . . . . . . Reprogrammed 11 | . . . . . . . . 6 . . . . 5 . . . Reused 4 | . . . . . . . . 2 . . . . 2 . . . Traps Extracted . | . . . . . . . . . . . . . . . . . Installed . | . . . . . . . . . . . . . . . . . Triggered 4 | . . . . . . . . 2 . . . . 2 . . . Machines | -11 -10 -10 -9 -9 -9 -8 -8 -7 -7 -7 -7 -6 -6 -6 -6 -5 ---------- Run | Yrd Mat Min Mat Min Exi Min Mat Fac Low Low Dat Pro Fac Low Low Fac Machines Disabled 13 | . . . 3 . . . 1 . . . . . . 1 . 8 Max in Single Turn 4 | . . . 1 . . . 1 . . . . . . 1 . 4 Garrison Access 4 | . . . . . . . . 2 . . . . 2 . . . Machines Repaired . | . . . . . . . . . . . . . . . . . Machines Dismantled . | . . . . . . . . . . . . . . . . . Machines Sabotaged . | . . . . . . . . . . . . . . . . . Overloaded Fab Kills 2 | . . . . . . . . 2 . . . . . . . . Hacking | -11 -10 -10 -9 -9 -9 -8 -8 -7 -7 -7 -7 -6 -6 -6 -6 -5 --------- Run | Yrd Mat Min Mat Min Exi Min Mat Fac Low Low Dat Pro Fac Low Low Fac Machines Accessed 79 | . 9 1 9 . 2 . 10 25 1 . 4 . 14 . . 4 Terminals 40 | . 6 . 6 . . . 8 14 . . . . 5 . . 1 Fabricators 9 | . . . . . . . . 3 . . . . 4 . . 2 Repair Stations 3 | . 1 . 1 . . . 1 . . . . . . . . . Recycling Units 12 | . 2 . 1 . . . 1 5 . . . . 2 . . 1 Scanalyzers 3 | . . . 1 . . . . 1 . . . . 1 . . . Garrison Access 4 | . . . . . . . . 2 . . . . 2 . . . Total Hacks 242 | . 28 1 21 . 2 . 30 79 3 . 20 . 49 . . 9 Successful 129 | . 16 1 10 . 2 . 16 27 3 . 20 . 29 . . 5 Failed 113 | . 12 . 11 . . . 14 52 . . . . 20 . . 4 Catastrophic 20 | . 1 . 2 . . . 2 11 . . . . 2 . . 2 Database Lockouts . | . . . . . . . . . . . . . . . . . Manual 121 | . 14 . 12 . 1 . 24 50 . . . . 17 1 . 2 Terminals 131 | . 18 . 14 . . . 25 52 . . . . 20 . . 2 Fabricators 27 | . . . . . . . . 6 . . . . 15 . . 6 Repair Stations 11 | . 5 . 2 . . . 4 . . . . . . . . . Recycling Units 27 | . 5 . 1 . . . 1 15 . . . . 4 . . 1 Scanalyzers 9 | . . . 4 . . . . 2 . . . . 3 . . . Garrison Access 11 | . . . . . . . . 4 . . . . 7 . . . Terminal Hacks 55 | . 4 1 4 . 2 . 5 9 3 . 20 . 7 . . . Record 9 | . . . . . 1 . . . 3 . 5 . . . . . Part Schematic 13 | . 1 . . . . . . 3 . . 8 . 1 . . . Robot Schematic 5 | . 1 . . . . . . . . . 4 . . . . . Robot Analysis 6 | . 1 . 1 . . . 3 . . . . . 1 . . . Prototype ID Bank 6 | . . . 2 . . . . 1 . . 3 . . . . . Open Door 1 | . . 1 . . . . . . . . . . . . . . Branch Access Points 2 | . . . . . . . . 1 . . . . 1 . . . Machine Index 1 | . . . . . . . . . . . . . 1 . . . Terminal Index 1 | . . . . . . . . 1 . . . . . . . . Alert Level 1 | . . . . . . . 1 . . . . . . . . . Unreport Threat 3 | . . . 1 . . . . 1 . . . . 1 . . . Locate Traps 3 | . 1 . . . . . 1 1 . . . . . . . . Reprogram Traps 2 | . . . . . . . . 1 . . . . 1 . . . Zone Layout 1 | . . . . . . . . . . . . . 1 . . . Proto ID Catalog 1 | . . . . . 1 . . . . . . . . . . . Fabricator Hacks 14 | . . . . . . . . 2 . . . . 8 . . 4 Network Status 2 | . . . . . . . . 1 . . . . 1 . . . Load Schematic 6 | . . . . . . . . 1 . . . . 3 . . 2 Build 6 | . . . . . . . . . . . . . 4 . . 2 Repair Station Hacks 8 | . 4 . 1 . . . 3 . . . . . . . . . Scan Component 5 | . 2 . 1 . . . 2 . . . . . . . . . Repair 3 | . 2 . . . . . 1 . . . . . . . . . Recycling Unit Hacks 7 | . . . . . . . 1 3 . . . . 2 . . 1 Retrieve Components 7 | . . . . . . . 1 3 . . . . 2 . . 1 Scanalyzer 4 | . . . 2 . . . . . . . . . 2 . . . Insert Component 2 | . . . 1 . . . . . . . . . 1 . . . Analyze 2 | . . . 1 . . . . . . . . . 1 . . . Garrison Access Hacks 4 | . . . . . . . . 2 . . . . 2 . . . Seal Access 4 | . . . . . . . . 2 . . . . 2 . . . Unauthorized Hacks 37 | . 8 . 3 . . . 7 11 . . . . 8 . . . Terminals 26 | . 6 . 2 . . . 7 5 . . . . 6 . . . Track 2 | . . . . . . . . 1 . . . . 1 . . . Assimilate 2 | . . . . . . . . . . . . . 2 . . . Botnet 8 | . 1 . 2 . . . 1 3 . . . . 1 . . . Disrupt 3 | . . . . . . . 1 1 . . . . 1 . . . Operators 1 | . . . . . . . . . . . . . 1 . . . Skim 10 | . 5 . . . . . 5 . . . . . . . . . Fabricators 4 | . . . . . . . . 2 . . . . 2 . . . Prioritize 2 | . . . . . . . . . . . . . 2 . . . Overload 1 | . . . . . . . . 1 . . . . . . . . Recompile 1 | . . . . . . . . 1 . . . . . . . . Repair Stations . | . . . . . . . . . . . . . . . . . Recycling Units 7 | . 2 . 1 . . . . 4 . . . . . . . . Reject 1 | . . . . . . . . 1 . . . . . . . . Mask 3 | . . . . . . . . 3 . . . . . . . . Tunnel 3 | . 2 . 1 . . . . . . . . . . . . . Scanalyzers . | . . . . . . . . . . . . . . . . . Garrison Access . | . . . . . . . . . . . . . . . . . Data Cores Recovered . | . . . . . . . . . . . . . . . . . Used . | . . . . . . . . . . . . . . . . . Hacking Detections 60 | . 7 . 8 . . . 9 22 . . . . 11 . . 3 Full Trace Events 6 | . . . . . . . 1 . . . . . 3 . . 2 Feedback Events . | . . . . . . . . . . . . . . . . . Feedback Blocked . | . . . . . . . . . . . . . . . . . Robot Schematics Acquired 5 | . 1 . . . . . . . . . 4 . . . . . Robots Built . | . . . . . . . . . . . . . . . . . Authchips . | . . . . . . . . . . . . . . . . . Time . | . . . . . . . . . . . . . . . . . Total Robot Build Rating . | . . . . . . . . . . . . . . . . . Part Schematics Acquired 14 | . 1 . . . . . . 3 . . 8 . 2 . . . Parts Built 9 | . . . . . . . . . . . . . 7 . . 2 Authchips 1 | . . . . . . . . . . . . . 1 . . . Time 412 | . . . . . . . . . . . . . 200 . . 212 Total Part Build Rating 50 | . . . . . . . . . . . . . 38 . . 12 Parts Repaired 3 | . 2 . . . . . 1 . . . . . . . . . Time 90 | . 52 . . . . . 38 . . . . . . . . . Parts Recycled . | . . . . . . . . . . . . . . . . . Recycled Matter . | . . . . . . . . . . . . . . . . . Retrieved Matter . | . . . . . . . . . . . . . . . . . Retrieved Components 41 | . . . . . . . 9 18 . . . . 12 . . 2 Parts Scanalyzed 2 | . . . 1 . . . . . . . . . 1 . . . Part Schematics Acquired 1 | . . . . . . . . . . . . . 1 . . . Parts Damaged . | . . . . . . . . . . . . . . . . . Bothacking | -11 -10 -10 -9 -9 -9 -8 -8 -7 -7 -7 -7 -6 -6 -6 -6 -5 ------------ Run | Yrd Mat Min Mat Min Exi Min Mat Fac Low Low Dat Pro Fac Low Low Fac Used RIF Installer . | . . . . . . . . . . . . . . . . . Robots Hacked 6 | . . . . . 4 . . 2 . . . . . . . . Non-combat 4 | . . . . . 3 . . 1 . . . . . . . . Combat 2 | . . . . . 1 . . 1 . . . . . . . . Robot Hacks Applied 6 | . . . . . 4 . . 2 . . . . . . . . parse_system 5 | . . . . . 4 . . 1 . . . . . . . . find_chute 1 | . . . . . . . . 1 . . . . . . . . Relay Couplers Released . | . . . . . . . . . . . . . . . . . Fabnet Peak Effective % . | . . . . . . . . . . . . . . . . . Robots Rewired . | . . . . . . . . . . . . . . . . . Allies Hacked 1 | . . . . . . . . . 1 . . . . . . . Hacks Repelled . | . . . . . . . . . . . . . . . . . Allies | -11 -10 -10 -9 -9 -9 -8 -8 -7 -7 -7 -7 -6 -6 -6 -6 -5 -------- Run | Yrd Mat Min Mat Min Exi Min Mat Fac Low Low Dat Pro Fac Low Low Fac Total Allies 11 | . . 2 . 3 . . . . 3 . . 1 2 . . . Largest Group 3 | . . 2 . 3 3 3 . . 3 . . 1 1 . . . Highest-Rated Group 96 | . . 39 . 40 40 40 . . 60 . . 96 96 . . . Highest-Rated Ally 96 | . . 31 . 16 16 16 . . 20 . . 96 96 . . . Total Orders 19 | . . . . . . . . . . . . . . . . 19 STAY 1 | . . . . . . . . . . . . . . . . 1 EXPLORE 10 | . . . . . . . . . . . . . . . . 10 RETURN 8 | . . . . . . . . . . . . . . . . 8 Ally Attacks 61 | . . 19 . . . 30 . . 2 . . 3 7 . . . Total Damage 1011 | . . 290 . . . 338 . . 106 . . 46 231 . . . Kills 13 | . . 5 . . . 4 . . 1 . . 1 2 . . . Allies Corrupted 2 | . . . . . . . . . 1 . . . . . . 1 Allies Melted 1 | . . . . . . . . . . . . . 1 . . . Intel | -11 -10 -10 -9 -9 -9 -8 -8 -7 -7 -7 -7 -6 -6 -6 -6 -5 ------- Run | Yrd Mat Min Mat Min Exi Min Mat Fac Low Low Dat Pro Fac Low Low Fac Active Infowar (turns) 18842 | 287 2520 1927 3419 566 611 1268 829 3372 1099 866 194 621 1090 100 . 73 Sensors 73 | . . . . . . . . . . . . . . . . 73 Terrain 6312 | . . . 2977 560 611 1255 829 80 . . . . . . . . Structural 3839 | . . . . . . . . 1995 1099 54 . . 591 100 . . Seismic 17330 | 287 2520 1927 3333 566 611 931 . 3298 1096 866 194 621 1080 . . . Robot Analysis Total 6 | . 1 . 1 . . . 3 . . . . . 1 . . . Derelict Logs Recovered 5 | . . 1 . . . . . . 1 1 . 1 . 1 . . Drone Launches 16 | . . . . . . . . . . . . . . . . 16 Drone Recoveries 11 | . . . . . . . . . . . . . . . . 11 Exploration | -11 -10 -10 -9 -9 -9 -8 -8 -7 -7 -7 -7 -6 -6 -6 -6 -5 ------------- Run | Yrd Mat Min Mat Min Exi Min Mat Fac Low Low Dat Pro Fac Low Low Fac Turns Passed 22943 | 345 2521 1928 3767 566 611 1268 2619 3541 1099 934 194 898 1135 211 87 1219 Spaces Moved 13534 | 182 774 575 1199 221 240 471 775 4990 433 360 77 344 1764 364 165 600 Core 315 | 11 . . . . . . . . . . . . 2 71 165 66 Treads 6001 | 171 774 575 1199 221 240 471 775 69 433 360 77 258 . 1 . 377 Legs . | . . . . . . . . . . . . . . . . . Wheels 99 | . . . . . . . . . . . . 86 13 . . . Hover 79 | . . . . . . . . . . . . . . . . 79 Flight 7040 | . . . . . . . . 4921 . . . . 1749 292 . 78 Fastest Speed 17 | 50 160 320 240 250 250 250 243 50 243 243 243 145 17 27 50 32 Average Speed 136 | 153 284 320 244 250 250 250 246 52 243 243 243 218 27 32 50 136 Slowest Speed 480 | 160 480 320 250 250 250 250 247 250 243 243 243 247 250 160 50 200 Overloaded Moves 23 | . . . . . . . . . . . . . 8 15 . . Propulsion Burnouts . | . . . . . . . . . . . . . . . . . Robots Hopped 90 | . . . . . . . . 82 . . . . 7 1 . . Potential Cave-ins . | . . . . . . . . . . . . . . . . . Cave-ins Triggered . | . . . . . . . . . . . . . . . . . Exploration Rate (%) 56 | 6 95 86 96 40 64 94 46 73 65 50 68 60 42 47 12 18 Regions Visited 16 Branch Regions 10 Pre-discovered Areas 9 | . 2 1 1 . 1 . 2 . 1 . 1 . . . . . Known Exits Taken 5 | . . . . . . . 1 1 . . . 1 1 . 1 . Unknown Exits Taken 11 | 1 1 1 1 1 1 1 . . 1 1 1 . . 1 . . Scrap Searched 13 | . . 1 . 1 . 1 . . 3 5 . 1 . 1 . . Spaces Dug 257 | . 4 . 26 27 . . 1 72 27 11 . 1 47 2 . 39 Terrain Destroyed 443 | . 4 . 76 27 . . 1 72 28 42 . 69 47 2 . 75 Melee 123 | . . . . . . . 1 72 . . . . 47 2 . 1 Projectile 91 | . 4 . 15 . . . . . 3 3 . 7 . . . 59 AOE 229 | . . . 61 27 . . . . 25 39 . 62 . . . 15 Terrain Rammed . | . . . . . . . . . . . . . . . . . Walls Destroyed . | . . . . . . . . . . . . . . . . . Machines Disabled . | . . . . . . . . . . . . . . . . . Actions | -11 -10 -10 -9 -9 -9 -8 -8 -7 -7 -7 -7 -6 -6 -6 -6 -5 --------- Run | Yrd Mat Min Mat Min Exi Min Mat Fac Low Low Dat Pro Fac Low Low Fac Total 16713 | 214 974 644 1767 232 252 552 1302 5580 470 393 81 437 2313 445 168 889 Wait 1729 | 2 100 51 281 4 . 68 380 223 24 5 . 42 367 45 . 137 Move 13348 | 181 773 574 1198 220 239 470 774 4833 432 359 76 343 1750 361 165 600 Hop 81 | . . . . . . . . 74 . . . . 6 1 . . Pick Up 176 | 8 12 6 31 1 2 1 13 69 . 3 . . 17 1 . 12 Fast Attach 92 | 7 6 . 5 . . 2 9 21 . . . 1 16 2 1 22 Attach 63 | . 3 . 4 . . . 7 13 1 2 . 5 14 8 . 6 Detach 37 | . . . 1 . . 1 1 15 . 1 . . 9 5 . 4 Swap 190 | . 10 3 79 5 2 3 8 41 4 8 4 4 10 2 . 7 Drop 195 | 1 1 1 41 1 5 2 16 84 . . . 1 24 8 . 10 Fire 440 | 15 66 2 124 1 . 4 90 1 9 15 . 41 1 . . 71 Melee 278 | . . . . . 4 . 2 178 . . . . 68 10 . 16 Ram 4 | . . . . . . . . . . . . . . 2 2 . Kick . | . . . . . . . . . . . . . . . . . Crush 20 | . 3 7 3 . . 1 2 . . . . . . . . 4 Escape Stasis 59 | . . . . . . . . 28 . . . . 31 . . . Rewire . | . . . . . . . . . . . . . . . . . Trap . | . . . . . . . . . . . . . . . . . Miscellaneous 1 | . . . . . . . . . . . 1 . . . . . Route ------- -11/Scrapyard -10/Materials (discovered 5 exits: *Mat x3 / *Min / *Sub) -10/Mines (discovered 3 exits: *Mat x2 / *Sub) -9/Materials (discovered 7 exits: *Mat x3 / [*Min x2] / *Sto x2) -9/Mines -9/Exiles -8/Mines (discovered 2 exits: *Mat x2) -8/Materials (discovered 3 exits: *Fac x3) -7/Factory (discovered 5 exits: *Fac x3 / *Low x2) -7/Lower Caves -7/Lower Caves -7/Data Miner -6/Proximity Caves -6/Factory (discovered 4 exits: *Fac x2 / *Low x2) -6/Lower Caves -6/Lower Caves -5/Factory History --------- Turn | Location | Event 20 | -11/Scrapyard | Discovered new exit (range 16) 346 | -11/Scrapyard | Entered Materials 362 | -10/Materials | Build established: Mutant 694 | -10/Materials | Discovered new exit (range 15) 985 | -10/Materials | Core integrity fell below 50% 1406 | -10/Materials | Discovered new exit (range 4) 1771 | -10/Materials | Discovered new exit (range 11) 1876 | -10/Materials | Learned Storage emergency access door positions 1906 | -10/Materials | Repaired Lgt. Treads 1940 | -10/Materials | Repaired Lgt. Cannon 1941 | -10/Materials | Identified exit to Subcaves 1973 | -10/Materials | Discovered new exit (range 16) 1996 | -10/Materials | Loaded intel: 2 recycling unit locations 2074 | -10/Materials | Learned Storage trap positions 2096 | -10/Materials | Learned location of 1 exit from Storage 2128 | -10/Materials | Learned Storage emergency access door positions 2222 | -10/Materials | Learned location of 2 exits from Subcaves 2687 | -10/Materials | Build established: Scavenger-Mutant 2867 | -10/Materials | Entered Mines 2893 | -10/Mines | Discovered new exit (range 5) 2934 | -10/Mines | Found the Drone Emporium 2956 | -10/Mines | Found Prototype Device 2957 | -10/Mines | Identified Sensor Drone Bay 2999 | -10/Mines | Learned location of Storage (-9) 3348 | -10/Mines | Learned Materials stockpile data 4222 | -10/Mines | Discovered new exit (range 9) 4417 | -10/Mines | Discovered exit to Subcaves (range 13) 4795 | -10/Mines | Entered Materials 4795 | -9/Materials | Evolved 2 slots: Propulsion x1, Utility x1 4796 | -9/Materials | Identified exit to Storage 5715 | -9/Materials | Discovered new exit (range 15) 6287 | -9/Materials | Discovered new exit (range 14) 6434 | -9/Materials | Discovered new exit (range 8) 7125 | -9/Materials | Discovered new exit (range 14) 7260 | -9/Materials | Build established: Mutant 7890 | -9/Materials | Discovered exit to Storage (range 13) 8051 | -9/Materials | Discovered new exit (range 16) 8562 | -9/Materials | Entered Mines 8635 | -9/Mines | Assisted by bots powering up and referring to "LRC-V3" 8973 | -9/Mines | A weapon hastily lodged in a ceiling crevice suddenly fell to the ground 9116 | -9/Mines | Deemed a non-threat by the Exiles lab entrance 9116 | -9/Mines | Discovered new exit (range 5) 9128 | -9/Mines | Entered Exiles 9128 | -9/Exiles | Accompanied by 3 allies 9188 | -9/Exiles | Met 8R-AWN 9230 | -9/Exiles | Met EX-HEX 9304 | -9/Exiles | Met EX-BIN 9338 | -9/Exiles | Aligned with FarCom system 9340 | -9/Exiles | Given EX-Vault access code 9400 | -9/Exiles | Opened EX-Vault 9420 | -9/Exiles | Found Flying Fortress v7 9437 | -9/Exiles | Found Skeleton Box 9490 | -9/Exiles | Warned to stay clear of 0b10 Research branches 9565 | -9/Exiles | Met EX-DEC 9580 | -9/Exiles | Learned location of Zion (-6) 9709 | -9/Exiles | Discovered new exit (range 14) 9739 | -9/Exiles | Stole two prototypes: Flying Fortress v7, Skeleton Box 9739 | -9/Exiles | Entered Mines 9739 | -8/Mines | Accompanied by 3 allies 10039 | -8/Mines | Build established: Skirmisher 10534 | -8/Mines | Lost 3 allies 10752 | -8/Mines | Discovered new exit (range 5) 10974 | -8/Mines | Discovered new exit (range 9) 11007 | -8/Mines | Entered Materials 11007 | -8/Materials | Evolved 2 slots: Propulsion x1, Utility x1 11240 | -8/Materials | Lost 3 parts (1u2w) 12024 | -8/Materials | Repaired Arm. Treads 12158 | -8/Materials | Discovered new exit (range 8) 12189 | -8/Materials | Build established: Mutant 12603 | -8/Materials | Learned 8 Factory zone layouts 12636 | -8/Materials | Learned 4 Factory zone layouts 12660 | -8/Materials | Learned location of 2 exits from Factory 12672 | -8/Materials | Identified exit to Factory 12677 | -8/Materials | Learned 2 Lower Caves zone layouts 12690 | -8/Materials | Learned Factory emergency access door positions 12999 | -8/Materials | Garrison activated, responded to threat 13626 | -8/Materials | Entered Factory 13626 | -7/Factory | Evolved 2 slots: Utility x2 13627 | -7/Factory | Identified exit to Factory 13628 | -7/Factory | Identified exit to Lower Caves 13628 | -7/Factory | FarCom data flow suspended 13957 | -7/Factory | Build established: Hacker-Mutant 16826 | -7/Factory | Search patrols dispatched 17167 | -7/Factory | Entered Lower Caves 17167 | -7/Lower Caves | Spotted NL-URH(f) 17169 | -7/Lower Caves | Encountered a Master Thief 17300 | -7/Lower Caves | Learned 8 Factory zone layouts 17331 | -7/Lower Caves | Attracted the attention of an 0b10 checkpoint 17337 | -7/Lower Caves | Encountered a Warlord checkpoint 17481 | -7/Lower Caves | Entered an active Warlord outpost 17487 | -7/Lower Caves | Learned Research emergency access door positions 17487 | -7/Lower Caves | Learned Factory terminal intel 17526 | -7/Lower Caves | A Commander dispatched an escort 17970 | -7/Lower Caves | Discovered new exit (range 14) 18266 | -7/Lower Caves | Entered another Lower Caves area 18266 | -7/Lower Caves | Accompanied by 1 ally 18267 | -7/Lower Caves | Commander's escort returned to base 18735 | -7/Lower Caves | Spotted B-75 Beast 18839 | -7/Lower Caves | Destroyed B-75 Beast 18999 | -7/Lower Caves | Attracted the attention of an 0b10 checkpoint 19019 | -7/Lower Caves | Discovered new exit (range 5) 19034 | -7/Lower Caves | Learned location of 1 exit from Proximity Caves 19200 | -7/Lower Caves | Entered Data Miner 19203 | -7/Data Miner | Discovered new exit (range 7) 19252 | -7/Data Miner | Met Data Miner 19299 | -7/Data Miner | Learned location of Section 7 (-3) 19299 | -7/Data Miner | Acquired the access code to Warlord's prototype stash 19333 | -7/Data Miner | Received God Mode back door access code from Data Miner 19394 | -7/Data Miner | Entered Proximity Caves 19397 | -6/Proximity Caves | Spotter reported a threat 19400 | -6/Proximity Caves | Spotter reported a threat 19478 | -6/Proximity Caves | Learned Factory stockpile data 19893 | -6/Proximity Caves | Spotted B-75 Beast 19923 | -6/Proximity Caves | Core integrity fell below 50% 19962 | -6/Proximity Caves | Destroyed B-75 Beast 20018 | -6/Proximity Caves | Escorted by Enhanced Grunt 20049 | -6/Proximity Caves | Lost 9 parts (5n2u2w) 20292 | -6/Proximity Caves | Entered Factory 20292 | -6/Factory | Accompanied by 1 ally 20292 | -6/Factory | Evolved 2 slots: Utility x2 20295 | -6/Factory | Loaded intel: 26 terminal locations 20744 | -6/Factory | Spotted B-75 Beast 20746 | -6/Factory | Build established: Hacker-Sprinter 20746 | -6/Factory | Discovered new exit (range 5) 20883 | -6/Factory | Identified exit to Factory 21123 | -6/Factory | Fabricated Imp. Armor Integrity Analyzer? 21219 | -6/Factory | Identified exit to Lower Caves 21294 | -6/Factory | Discovered exit to Factory (range 5) 21338 | -6/Factory | Fabricated Focal Shield? 21342 | -6/Factory | Search patrols dispatched 21390 | -6/Factory | Fabricated Powered Armor? 21411 | -6/Factory | Fabricated Hvy. Treads? 21427 | -6/Factory | Entered Lower Caves 21430 | -6/Lower Caves | Lost 4 parts (1n3u) 21478 | -6/Lower Caves | Acquired the password to a Derelict Tinkerer's latest research 21481 | -6/Lower Caves | Found Prototype Special Weapon 21483 | -6/Lower Caves | Identified Molecular Deconstructor 21526 | -6/Lower Caves | Caught by Unaware searching for contraband prototypes 21593 | -6/Lower Caves | Core integrity fell below 50% 21604 | -6/Lower Caves | Caught by Unaware searching for contraband prototypes 21615 | -6/Lower Caves | Learned Factory interactive machine intel 21634 | -6/Lower Caves | Discovered new exit (range 9) 21635 | -6/Lower Caves | Lost 11 parts (2p4n4u1w) 21638 | -6/Lower Caves | Entered another Lower Caves area 21639 | -6/Lower Caves | Encountered a Warlord checkpoint 21654 | -6/Lower Caves | Discovered exit to Factory (range 7) 21699 | -6/Lower Caves | Spotted B-75 Beast 21716 | -6/Lower Caves | Attracted the attention of an 0b10 outpost 21721 | -6/Lower Caves | Core integrity fell below 20% 21721 | -6/Lower Caves | System corruption reached 10% 21725 | -6/Lower Caves | Entered Factory 21725 | -5/Factory | Evolved 2 slots: Propulsion x1, Utility x1 21726 | -5/Factory | Loaded intel: 55 interactive machine locations 21820 | -5/Factory | Lost 3 parts (2u1w) 21832 | -5/Factory | System corruption reached 10% 21972 | -5/Factory | Incoming investigation squad redirected 22012 | -5/Factory | Incoming investigation squad redirected 22059 | -5/Factory | Fabricated Hvy. Treads (x1) 22090 | -5/Factory | Fabricated Hvy. Treads (x1) 22397 | -5/Factory | Build established: Mutant 22850 | -5/Factory | Build established: Scavenger-Mutant 22944 | -5/Factory | Self-destructed Last Messages --------------- 22925_ Destroyed Gauss Rifle. 22927_ ALERT: Hostiles spotted, dispatching reinforcements to Terminal F009. 22927_ Penetrated by Slug. 22928_ Activated siege mode. 22930_ Slug penetrates H-66 Slayer. 22930_ Slug penetrates Wall. 22930_ Penetrated by Slug. 22930_ Lrn. Tractor Beam destroyed. 22932_ H-66 Slayer suffers critical hit (Destroy). 22932_ Destroyed Gauss Rifle. 22934_ Slug penetrates H-66 Slayer. 22938_ H-66 Slayer destroyed. 22940_ K-01 Serf collects debris. 22942_ H-66 Slayer suffers critical hit (Destroy). 22942_ Destroyed Lgt. Fission Core. 22943_ K-01 Serf collects debris. 22944_ Activated siege mode. Map ----- +----------------------------------------------------+ | | | ?????????????????????????????????###########?????? | | ?????????????????????????????????# !!! #?????? | | ???????T?????????????????????????# !!! #?????? | | ?????????????????????????????##### !! ####### | | ?????????????????????????????# " ## !! | | ?????????????????????????????#####"###+######[ ! | | ?????????????????????????????????# #?# #????# | | ?????????????????????????????????# #?# #????# | | ?????????????????????????????????# #?# #????# | | ?????????????????????????????????# #?# #??### "" | | ?????????????????????????????######### #??# + ] "" | | ?????????????????????????????# ## #??# # S | | ?????????????????????????????# ## #### # "" | | ?????????????????????????????# """" ## # ## "" | | ?????????????????????????????# """" # # # | | ?????????????????????????????# """" # #+### | | ???????????????????####+###### """" + | | ???????????????????# + """" # ^ ### | | ?????"T"???????????# ## """" # #?? | | ?????"""???????????# ## ## " #?? | | ???????????????????# ## ## """ #?? | | ???????????????????# ## ## ### | | ?????????????####### ## + | | ????""????;=h[ ## # ########+ | | ????"T????#k! @ #########+## # ! | | ????""????# "#??????????# # | | ??????????# "#??????????# # """" | | ??????????? "#??????????# # """" | | ??????????? """ """ T#??????????# # """" | | ??????????????""" """ #??????????# # """" | | ???????????????"" "" "#??????????# # | | ??????????????? "*=="#??????????# # | | ?????????????? ??"" ! #??????????# #####+### | | ????????????? ??? = #?????????## ### # | | ?????????????? ???? ! #?????????# # | | ??????????????###?????? =###?????????+ | | ???????????????????????? ????????????# # | | ???????????????????????? ????????????# ## # | | ???????????????????????? ????????????# ##""#### | | ???????????????????????? ????????????# #####??? | | ??????????????????????????????????????# #??????? | | ??????????????????????????????????????# #??????? | | ?????????????????????????????????????? ??????? | | ????????????????????????????????????? ??????? | | ??????????????????????""???????????? ??????? | | ??????????????????????T????????????? ??????? | | ??????????????????????????????????? ??????? | | ??????????????????????????????????### ??????? | | ????????????????????????????????????# ??????? | +----------------------------------------------------+ Best States ------------- Heat Dissipation 56 Energy Generation 18 Energy Capacity 290 Matter Stores 300 Matter Capacity 300 Sight Range 16 Robot Scan Range 16 Terrain Scan Range 16 Terrain Scan Density 10 Additional Mass Support 12 Armor Coverage 450 Resistance: KI 25 Propulsion Shielding 66 Weapon Cycling 30 Phase Shifting 5 Evasion (%) 74 Targeting Accuracy 5 Melee Accuracy 13 Target Analysis 6 Core Analysis 6 Recoil Reduction 5 Offensive Hacking 22 Defensive Hacking 10 Authchip Count 1 Item Schematics ----------------- ECM Suite | -10/Materials | Hacked Imp. Kinecellerator | -7/Factory | Hacked Powered Armor | -7/Factory | Hacked Gravity Neutralizer | -7/Factory | Hacked Combat Drone Bay | -7/Data Miner | Free Lgt. Regenerative Plating | -7/Data Miner | Free Multireflex Exoskeleton | -7/Data Miner | Free Force Rifle | -7/Data Miner | Free Hvy. Treads | -7/Data Miner | Free Imp. Dynamic Insulation System | -7/Data Miner | Free Hvy. Phase Cannon | -7/Data Miner | Free Adv. Shield Generator | -7/Data Miner | Free Cld. VTOL Module | -6/Factory | Scanalyzed Imp. Utility Shielding | -6/Factory | Hacked Robot Schematics ------------------ M-13 Machinist | -10/Materials | Hacked L-41 Fighter | -7/Data Miner | Free B-48 Gladiator | -7/Data Miner | Free M-28 Smith | -7/Data Miner | Free H-66 Slayer | -7/Data Miner | Free Fabricated ------------ Imp. Armor Integrity Analyzer | x2 | -6/Factory | Preloaded Focal Shield | x2 | -6/Factory | Preloaded Powered Armor | x2 | -6/Factory | Authchip Hvy. Treads | x1 | -6/Factory Hvy. Treads | x1 | -5/Factory Hvy. Treads | x1 | -5/Factory Repaired ---------- Lgt. Treads | 6% | -10/Materials Lgt. Cannon | 41% | -10/Materials Arm. Treads | 15% | -8/Materials Alien Tech Used ----------------- None Achievements -------------- None Challenges ------------ None Game ------ Seed AssaultMultitargetingParser Manual? 0 Play Time 03:43:36 Cumulative 380.1 hours Start 2025.05.16 @ 21:48:16 End 2025.05.22 @ 14:45:39 Sessions 7 Manual Loads 0 Difficulty Rogue Special Mode None Game No. 186 Rogue 123 Adventurer 63 Explorer 0 Win Type - Total 8 Types 7/0/0/1/0/0/0/0/0/0 Lore% 84 Gallery% 76 Achievement% 64 Wizard Run 0 Options --------- Layout 2 ASCII 0 Keyboard 1 Movement Numpad Keybinds 0 Fullscreen 2 Font 24/Terminus Map View 50x44 Zoom Use 1% Tactical HUD 1 Map Filters NONE Filters NONE Steam 1 RUN: 72f11d36-ac27-4fa1-8591-9db441d30187